Cogmind - Beta 16 @@@ ROGUE MODE // 2025.12.09 @ 23:17:18 Player: Gatamar Result: Destroyed by S-27 Virus with Autogun Performance ------------- Evolutions (4) 2000 Regions Visited (10) 2000 Robots Destroyed (97) 485 Value Destroyed (2768) 2768 Prototype IDs (5) 100 Alien Tech Used (0) 0 Bonus (629) 629 TOTAL SCORE: 7982 Bonus ------- High Alert Combat Kills 58 Follower Combat Kills 808 Friendly Fire -237 Cogmind --------- Core Integrity 0/850 Matter 140/300 Energy 98/100 System Corruption 0% Temperature Cool (0) Movement Core (50) Location -6/Factory Parts ------- > --- POWER (2) -------- (None) > --- PROPULSION (3) --- (None) > --- UTILITY (8) ------ Enhanced Optical Array Terrain Scan Processor > --- WEAPON (2) ------- (None) > --- INVENTORY (5) ---- (None) Peak State ------------ > --- POWER ------------ Micro Nuclear Core Micro Nuclear Core > --- PROPULSION ------- Improved Medium Treads Heavy Siege Treads > --- UTILITY ---------- Enhanced Optical Array Power Shielding Backup Plating III Backup Plating III Improved Light Armor Plating Layered Heavy Armor Plating Hacking Suite > --- WEAPON ----------- Hypervelocity Mass Driver Heavy Rocket Launcher > --- INVENTORY -------- Heavy Treads Magnetic Acceleration Cannon Proton Missile Launcher Mini Grenade Launcher [Rating: 70] Favorites ----------- Power Micro Nuclear Core Engine Light Ion Engine Power Core Micro Nuclear Core Propulsion Light Treads Treads Light Treads Leg Aluminum Leg Hover Unit Backup Propulsion III Flight Unit VTOL Module Utility Backup Plating III Device Improved Terrain Scanner Storage Large Storage Unit Processor Advanced Targeting Computer Hackware Hacking Suite Protection Backup Plating III Weapon Gauss Cannon Energy Gun Medium Laser Energy Cannon Cooled Particle Cannon Ballistic Gun Assault Rifle Ballistic Cannon Gauss Cannon Launcher Mini Grenade Launcher Special Weapon Welding Torch Build | -11 -10 -10 -10 -8 -7 -7 -7 -6 -6 -6 ------- Run | Yrd Mat Min Sub Mat Fac Was Fac Fac Was Fac Slots Evolved 8 | . . . . 4 2 . . 2 . . Power 1 | . . . . 1 . . . . . . Propulsion 1 | . . . . 1 . . . . . . Utility 6 | . . . . 2 2 . . 2 . . Weapon . | . . . . . . . . . . . Parts Attached 66 | 6 3 4 1 8 17 9 6 5 1 6 Power 10 | 1 . 1 . 1 4 1 2 . . . Engine 4 | 1 . . . 1 2 . . . . . Core 6 | . . 1 . . 2 1 2 . . . Reactor . | . . . . . . . . . . . Propulsion 17 | 2 . . 1 3 5 2 1 1 . 2 Treads 13 | 2 . . 1 3 3 1 1 1 . 1 Leg 3 | . . . . . 2 1 . . . . Wheel . | . . . . . . . . . . . Hover . | . . . . . . . . . . . Flight 1 | . . . . . . . . . . 1 Utility 20 | 1 3 1 . 2 3 2 2 2 . 4 Device 7 | . 1 1 . 1 . 1 . . . 3 Storage 2 | 1 1 . . . . . . . . . Processor 6 | . 1 . . 1 2 . . 1 . 1 Hackware 2 | . . . . . 1 . . 1 . . Protection 3 | . . . . . . 1 2 . . . Artifact . | . . . . . . . . . . . Weapon 19 | 2 . 2 . 2 5 4 1 2 1 . Energy Gun 1 | 1 . . . . . . . . . . Energy Cannon 1 | . . . . . 1 . . . . . Ballistic Gun 4 | 1 . . . 1 1 1 . . . . Ballistic Cannon 5 | . . . . . 2 . 1 1 1 . Launcher 7 | . . 1 . 1 1 3 . 1 . . Special Weapon 1 | . . 1 . . . . . . . . Impact Weapon . | . . . . . . . . . . . Slashing Weapon . | . . . . . . . . . . . Piercing Weapon . | . . . . . . . . . . . Special Melee Weapon . | . . . . . . . . . . . Unidentified Prototypes 5 | . . . . . 3 1 1 . . . Parts Lost 37 | . . 2 . 2 8 6 . . . 19 Power 8 | . . 1 . 1 3 1 . . . 2 Propulsion 10 | . . . . . 3 3 . . . 4 Utility 13 | . . 1 . . 1 2 . . . 9 Weapon 6 | . . . . 1 1 . . . . 4 Highest Loss Streak 19 | . . 2 . 2 3 6 . . . 19 To Critical Strikes . | . . . . . . . . . . . Average Backups 9 | 2 7 12 11 12 14 5 4 4 4 2 Power . | . 1 1 1 . . . . . . . Propulsion 1 | 1 2 2 2 3 2 . . 1 1 . Utility 2 | . 2 5 5 4 3 2 1 . . . Weapon 3 | . . 1 2 2 7 2 2 3 3 1 Tool/Special . | . . . . . . . . . . . Unused Backups 10 | . . . . 1 1 4 2 . 2 . Power 1 | . . . . . . . 1 . . . Propulsion 2 | . . . . . 1 . . . 1 . Utility 4 | . . . . 1 . 1 1 . 1 . Weapon 3 | . . . . . . 3 . . . . Tool/Special . | . . . . . . . . . . . Average Slot Usage (%) 84 | . 98 78 100 88 89 56 77 84 86 62 Engine 5 | . 14 1 . 4 7 10 5 . . . Core 6 | . . . 14 4 3 1 9 13 13 8 Treads 19 | . 28 28 28 27 19 2 14 13 13 8 Device 5 | . . 3 14 17 10 1 . . . 1 Storage 6 | . 14 14 14 9 7 1 . . . . Processor 8 | . 10 1 . 8 19 5 . 4 6 6 Hackware 2 | . . . . . 4 1 . 6 6 5 Protection 11 | . . . . . . 9 31 33 33 20 Energy Gun 3 | . 14 14 14 4 . . . . . . Ballistic Gun 2 | . 14 2 . 7 . . . . . . Ballistic Cannon 5 | . . . . . 6 4 11 11 6 4 Launcher 5 | . . 10 14 4 5 6 2 1 6 3 Peak Build Rating 70 | 6 9 12 13 21 44 48 58 68 70 70 Average Rating 35 | 5 7 7 12 18 34 27 54 66 68 47 On Entrance 31 | . 6 9 12 13 20 40 48 58 67 70 Avg Prop Armor Cover (%) 1 | . . . . . . 1 1 . . . Naked Turns 19 | . . . . . . 19 . . . . Heaviest Build 59 | 12 32 31 31 36 51 51 51 52 59 59 Greatest Support 100 | 40 40 40 40 60 70 70 98 100 100 100 Greatest Overweight (x) 12 | 1 . . . . 12 3 . . . 9 Average Overweight (x) . | . . . . . . . . . . . Largest Inventory Capacity 15 | 8 15 15 15 15 15 15 5 5 5 5 Average Capacity 10 | 7 14 15 15 15 15 6 5 5 5 5 Most Carried 15 | 3 12 15 14 15 15 14 5 5 5 5 Average Carried 9 | 2 8 13 13 14 14 5 4 4 4 3 Final Capacity 15 | 8 15 15 15 15 15 5 5 5 5 5 Final Carried 15 | 3 12 13 14 15 13 4 5 5 5 . Class Distribution -------------------- 81% | Mutant 18% | Scavenger-Mutant Dominant Class ---------------- Mutant | -10/Materials Mutant | -10/Mines Mutant | -10/Subcaves Mutant | -8/Materials Scavenger-Mutant | -7/Factory Mutant | -7/Waste Mutant | -7/Factory Mutant | -6/Factory Mutant | -6/Waste Mutant | -6/Factory Resources | -11 -10 -10 -10 -8 -7 -7 -7 -6 -6 -6 ----------- Run | Yrd Mat Min Sub Mat Fac Was Fac Fac Was Fac Matter Collected 2513 | 247 170 120 137 426 537 249 115 67 340 105 Remotely 491 | . . . . 408 83 . . . . . Salvage Created 2465 | . 280 181 152 533 707 46 . 165 . 401 Parts 168 | . 21 19 8 51 38 2 . 13 . 16 Haulers Intercepted 1 | . . . . . 1 . . . . . Recyclers Shooed 7 | . 2 . . 4 1 . . . . . Parts Field Recycled . | . . . . . . . . . . . Retrieved Matter . | . . . . . . . . . . . Parts Self-Destructed 4 | . . . 4 . . . . . . . Prevented . | . . . . . . . . . . . Parts Restored . | . . . . . . . . . . . Kills | -11 -10 -10 -10 -8 -7 -7 -7 -6 -6 -6 ------- Run | Yrd Mat Min Sub Mat Fac Was Fac Fac Was Fac Combat Hostiles Destroyed 68 | . 8 8 4 21 18 . . 3 . 6 Melee 1 | . . . . . . . . . . 1 Guns 25 | . 8 5 1 11 . . . . . . Cannons 10 | . . . . . 10 . . . . . AOE 29 | . . 3 3 9 7 . . 3 . 4 Classes Destroyed 18 | . 4 3 2 3 4 . . 1 . 1 Worker 7 | . . 1 . 2 1 . . 1 . 2 Builder 6 | . . . . 3 . . . 2 . 1 Tunneler 4 | . . 2 . 1 1 . . . . . Hauler 1 | . . . . . 1 . . . . . Recycler 3 | . . . . 1 1 . . . . 1 Mechanic 5 | . 1 . . . 1 . . 1 . 2 Operator 1 | . . . . 1 . . . . . . Watcher 3 | . 1 . . 1 . . . 1 . . Swarmer 25 | . 3 . . 14 7 . . . . 1 Grunt 27 | . 5 5 2 4 7 . . 1 . 3 Brawler 1 | . . . . . . . . . . 1 Duelist 1 | . . . . . 1 . . . . . Sentry 5 | . . . 1 3 . . . . . 1 Specialist 2 | . . . . . . . . 2 . . Hunter 1 | . . . . . 1 . . . . . Programmer 2 | . . . . . 2 . . . . . Subdweller 2 | . . . 2 . . . . . . . Assembled 3 | . . 3 . . . . . . . . Thug 1 | . . . . . . 1 . . . . Best Kill Streak 8 | . 5 4 2 7 5 . . 7 . 8 Combat Bots Only 6 | . 3 3 2 6 4 . . 3 . 3 Max Kills in Single Turn 4 | . 1 2 2 4 3 1 . 4 . 3 Gunslinging . | . . . . . . . . . . . Exploded 3 | . . 1 1 3 3 . . 2 . 3 Melee 1 | . . . . . . . . . . 1 Uniques/NPCs Destroyed . | . . . . . . . . . . . Combat | -11 -10 -10 -10 -8 -7 -7 -7 -6 -6 -6 -------- Run | Yrd Mat Min Sub Mat Fac Was Fac Fac Was Fac Hostile Shots Fired 586 | . 32 23 10 57 94 6 1 24 . 339 Missed 166 | . 10 4 6 22 26 . . 10 . 88 Hits 420 | . 22 19 4 35 68 6 1 14 . 251 Melee 11 | . . 3 . . . 6 . . . 2 Projectile 409 | . 22 16 4 35 68 . 1 14 . 249 Critical Strikes 12 | . . . . 2 4 3 . . . 3 Part Disruptions 1 | . . 1 . . . . . . . . Damage Taken 6873 | . 222 342 93 588 1842 325 26 337 12 3086 Core 1726 | . 51 55 . 76 458 235 . 41 . 810 Absorbed by Shields . | . . . . . . . . . . . Redirected to Shielding 37 | . . . . . . . . . . 37 Regen/Repaired (Parts) 994 | . . . . 53 158 553 17 63 139 11 Core Remaining (%) 61 | 100 . . 57 86 . . 1 . . . Volleys Fired 223 | . 27 31 9 41 65 2 . 15 4 29 Largest 2 | . 2 2 2 2 2 2 . 2 2 2 Hottest 95 | . 70 80 80 80 79 78 . 84 79 95 Shots Fired 360 | . 54 52 19 76 85 4 . 30 8 32 Gun 158 | . 54 32 9 63 . . . . . . Cannon 111 | . . . . . 66 . . 22 4 19 Launcher 82 | . . 11 10 13 19 4 . 8 4 13 Special 9 | . . 9 . . . . . . . . Kinetic 175 | . 27 1 . 37 65 . . 22 4 19 Thermal 103 | . 27 40 9 26 1 . . . . . Explosive 61 | . . 11 10 13 5 . . 8 4 10 Electromagnetic 21 | . . . . . 14 4 . . . 3 Robot Hit Streak 14 | . 14 9 3 11 13 5 . 3 . 3 Robot Miss Streak 6 | . 4 2 3 6 3 2 . 4 . 2 Penetration Max . | . . . . . . . . . . . Secondary Targets 2 | . 2 . . . . . . . . . Max Gunslinging Chain 1 | . 1 . . . . . . . . . Shots Hit Robots 186 | . 32 18 6 39 58 2 . 15 . 16 Core Hits 181 | . 16 21 8 45 38 3 . 24 1 25 Critical Kills 1 | . 1 . . . . . . . . . Critical Parts Destroyed 1 | . . . . . . . . . . 1 Critical Strikes 13 | . 2 3 . 5 1 . . . . 2 Burn 9 | . 1 3 . 5 . . . . . . Destroy 2 | . 1 . . . . . . . . 1 Blast 2 | . . . . . 1 . . . . 1 Melee Attacks . | . . . . . . . . . . . Impact . | . . . . . . . . . . . Slashing . | . . . . . . . . . . . Piercing . | . . . . . . . . . . . Sneak Attacks . | . . . . . . . . . . . Combat Hostiles . | . . . . . . . . . . . Follow-up Attacks . | . . . . . . . . . . . Damage Inflicted 8457 | . 430 664 336 1824 2536 69 . 1112 3 1483 Guns 1393 | . 423 165 24 781 . . . . . . Cannons 1851 | . . . . . 1291 . . 276 . 284 Explosions 5150 | . . 494 312 1026 1241 69 . 836 3 1169 Melee . | . . . . . . . . . . . Ramming 63 | . 7 5 . 17 4 . . . . 30 Kinetic 2623 | . 246 . . 554 1263 . . 276 . 284 Thermal 698 | . 177 165 24 227 43 62 . . . . Explosive 4610 | . . 494 312 1026 799 . . 836 3 1140 Electromagnetic 463 | . . . . . 427 7 . . . 29 Impact . | . . . . . . . . . . . Slashing . | . . . . . . . . . . . Piercing . | . . . . . . . . . . . Highest Corruption 8 | . . 8 8 . 6 7 7 . . . Average Corruption 6 | . . 7 8 . 4 6 7 . . . Corruption Purged . | . . . . . . . . . . . Corruption Blocked . | . . . . . . . . . . . Effects 67 | . . 15 4 . 19 8 21 . . . Message Errors 22 | . . 6 . . 5 2 9 . . . Matter Fused 13 | . . 2 1 . 4 1 5 . . . Heat Flow Errors 11 | . . 2 . . 4 4 1 . . . Energy Discharges 9 | . . 2 . . 3 . 4 . . . Data Loss (minor) 9 | . . 2 2 . 3 1 1 . . . Data Loss (major) 2 | . . 1 . . . . 1 . . . Misfires 1 | . . . 1 . . . . . . . Overload Shots . | . . . . . . . . . . . Overflow Damage 165 | . . 19 . 21 101 . . 12 . 12 Projectiles 65 | . . . . . 53 . . 12 . . Explosions 98 | . . 19 . 21 48 . . . . 10 Melee 2 | . . . . . . . . . . 2 Knockbacks 9 | . . . . . 5 . . . . 4 Impact . | . . . . . . . . . . . Kinetic 9 | . . . . . 5 . . . . 4 Secondary . | . . . . . . . . . . . Self-Inflicted Damage 1043 | . . 70 32 160 440 90 . 63 12 176 Shots 36 | . . 7 1 5 9 5 . 1 1 7 Rammed 20 | . 1 . . 8 . . . . . 11 Targets Rammed 23 | . 1 1 . 9 1 . . . . 11 Kicked 1 | . . . . . 1 . . . . . Crushed 2 | . . 1 . 1 . . . . . . Highest Temperature 593 | . 126 272 . 60 272 114 307 381 105 593 Average Temperature 88 | . 44 63 . 15 67 52 142 103 14 221 Received Heat Transfer 1623 | . 87 120 9 153 243 . 9 66 . 936 Effects 32 | . . . . . . . 8 3 . 21 Shutdowns 9 | . . . . . . . . 2 . 7 Energy Bleed 8 | . . . . . . . 4 . . 4 Interference 5 | . . . . . . . 3 . . 2 Matter Decay 2 | . . . . . . . . 1 . 1 Short Circuit 5 | . . . . . . . 1 . . 4 Damage (minor) 2 | . . . . . . . . . . 2 Damage (core) 1 | . . . . . . . . . . 1 Siege Activations . | . . . . . . . . . . . Martial Activations . | . . . . . . . . . . . Shielding Activations . | . . . . . . . . . . . Robots Disrupted . | . . . . . . . . . . . Combat Hostiles . | . . . . . . . . . . . Robots Corrupted 2 | . . . . . 1 . . . . 1 Combat Hostiles 2 | . . . . . 1 . . . . 1 Parts Fried 2 | . . . . . 2 . . . . . Impact Corruptions 1 | . . . . . . . . . . 1 Robots Melted 1 | . . . . 1 . . . . . . Combat Hostiles 1 | . . . . 1 . . . . . . Parts Melted 3 | . 1 . . 2 . . . . . . Heat Transferred 2542 | . 592 703 74 1036 87 50 . . . . Parts Sabotaged . | . . . . . . . . . . . Parts Stolen . | . . . . . . . . . . . Parts Stripped . | . . . . . . . . . . . Power Chain Reactions 3 | . . . . . 1 1 . . . 1 Alert | -11 -10 -10 -10 -8 -7 -7 -7 -6 -6 -6 ------- Run | Yrd Mat Min Sub Mat Fac Was Fac Fac Was Fac Maximum Alert Level 3 | . . . . 1 1 . . 3 1 . Low Security (%) 76 | 100 100 100 . 61 48 100 100 57 84 100 Level 1 20 | . . . . 38 51 . . 5 15 . Level 2 1 | . . . . . . . . 24 . . Level 3 . | . . . . . . . . 12 . . Level 4 . | . . . . . . . . . . . Level 5 . | . . . . . . . . . . . High Security . | . . . . . . . . . . . Max Security . | . . . . . . . . . . . Peak Influence 728 | . 93 79 . 369 307 96 167 728 254 129 Initial 254 | . . 30 . 10 163 96 . 42 254 . Average 112 | . 30 27 . 140 195 21 51 263 89 23 Influence Increases 3398 | . 257 178 50 691 734 33 289 890 . 276 Destroy 0b10 Robot/C 1600 | . 160 100 40 420 360 . 100 300 . 120 Destroy 0b10 Robot/NC 190 | . 10 15 . 45 25 . 10 55 . 30 Destroy Leader 334 | . 42 10 10 82 82 . 24 64 . 20 Allied During Kill 307 | . . . . . . . 134 173 . . Successful Hack 16 | . . . . . 16 . . . . . Disable Machine 240 | . . . . 30 135 . 15 30 . 30 Anti-Garrison Action 150 | . . . . . . . . 150 . . Destroy Structure 486 | . . 53 . 114 101 33 6 118 . 61 Partial Spotted 30 | . 15 . . . 15 . . . . . Lose Combat Pursuer 45 | . 30 . . . . . . . . 15 Influence Decreases 3388 | . 180 228 57 350 820 308 202 249 728 266 Entered New Map 968 | . . 47 15 10 198 179 . 45 474 . Time Decay 1978 | . 180 171 30 304 542 69 188 154 254 86 Lost Part 340 | . . 10 . 20 80 60 . . . 170 Lost Ally 86 | . . . 12 . . . 14 50 . 10 Purge Threat 16 | . . . . 16 . . . . . . Squads Dispatched 24 | . 2 . . 2 8 . 4 8 . . Investigation 2 | . . . . . 1 . 1 . . . Extermination 3 | . . . . . 2 . 1 . . . Reinforcement 13 | . 2 . . 2 4 . 1 4 . . Assault 3 | . . . . . . . . 3 . . Garrison 3 | . . . . . 1 . 1 1 . . Intercept . | . . . . . . . . . . . Searches Triggered . | . . . . . . . . . . . Construction Impeded 4 | . . . . 1 2 . . 1 . . Haulers Reinforced . | . . . . . . . . . . . Active Scanning Responses . | . . . . . . . . . . . Cargo Convoy Interrupts 1 | . . . . . 1 . . . . . Stealth | -11 -10 -10 -10 -8 -7 -7 -7 -6 -6 -6 --------- Run | Yrd Mat Min Sub Mat Fac Was Fac Fac Was Fac Distress Signals 6 | . 1 1 . 1 2 . . . . 1 Communications Jammed . | . . . . . . . . . . . Distress Signals . | . . . . . . . . . . . Times Spotted 124 | . 11 8 4 28 25 5 7 18 . 18 Peak Tracking Total 11 | . 6 3 2 5 5 6 2 6 . 11 Tactical Retreats 2 | . 1 . . . . . . . . 1 Traps | -11 -10 -10 -10 -8 -7 -7 -7 -6 -6 -6 ------- Run | Yrd Mat Min Sub Mat Fac Was Fac Fac Was Fac Traps Triggered 4 | . . . . . 3 . . 1 . . Indirectly . | . . . . . . . . . . . Trap Hack Attempts . | . . . . . . . . . . . Triggered . | . . . . . . . . . . . Disarmed . | . . . . . . . . . . . Reprogrammed . | . . . . . . . . . . . Reused . | . . . . . . . . . . . Traps Extracted . | . . . . . . . . . . . Installed . | . . . . . . . . . . . Triggered . | . . . . . . . . . . . Most Traps Carried 2 | . . 2 2 2 . . . . . . Machines | -11 -10 -10 -10 -8 -7 -7 -7 -6 -6 -6 ---------- Run | Yrd Mat Min Sub Mat Fac Was Fac Fac Was Fac Machines Disabled 17 | . . . . 2 9 . 1 3 . 2 Max in Single Turn 5 | . . . . 1 5 . . 1 . 2 Garrison Access 1 | . . . . . . . . 1 . . Machines Repaired . | . . . . . . . . . . . Machines Dismantled . | . . . . . . . . . . . Machines Sabotaged . | . . . . . . . . . . . Overloaded Fab Kills . | . . . . . . . . . . . Hacking | -11 -10 -10 -10 -8 -7 -7 -7 -6 -6 -6 --------- Run | Yrd Mat Min Sub Mat Fac Was Fac Fac Was Fac Machines Accessed 11 | . 1 . . 3 6 . 1 . . . Terminals 6 | . 1 . . 1 3 . 1 . . . Fabricators . | . . . . . . . . . . . Repair Stations 3 | . . . . 1 2 . . . . . Recycling Units 2 | . . . . 1 1 . . . . . Scanalyzers . | . . . . . . . . . . . Garrison Access . | . . . . . . . . . . . Total Hacks 25 | . 2 . . 9 12 . 2 . . . Successful 8 | . . . . 4 4 . . . . . Failed 17 | . 2 . . 5 8 . 2 . . . Catastrophic 4 | . . . . 1 2 . 1 . . . Database Lockouts . | . . . . . . . . . . . Manual 9 | . 1 . . 3 4 . 1 . . . Terminals 13 | . 2 . . 3 6 . 2 . . . Fabricators . | . . . . . . . . . . . Repair Stations 8 | . . . . 3 5 . . . . . Recycling Units 4 | . . . . 3 1 . . . . . Scanalyzers . | . . . . . . . . . . . Garrison Access . | . . . . . . . . . . . Terminal Hacks 2 | . . . . 1 1 . . . . . Open DSF 1 | . . . . . 1 . . . . . Unreport Threat 1 | . . . . 1 . . . . . . Fabricator Hacks . | . . . . . . . . . . . Repair Station Hacks 4 | . . . . 2 2 . . . . . Scan Component 2 | . . . . 1 1 . . . . . Repair 2 | . . . . 1 1 . . . . . Recycling Unit Hacks 2 | . . . . 1 1 . . . . . Report Inventory 2 | . . . . 1 1 . . . . . Scanalyzer . | . . . . . . . . . . . Garrison Access Hacks . | . . . . . . . . . . . Unauthorized Hacks . | . . . . . . . . . . . Terminals . | . . . . . . . . . . . Fabricators . | . . . . . . . . . . . Repair Stations . | . . . . . . . . . . . Recycling Units . | . . . . . . . . . . . Scanalyzers . | . . . . . . . . . . . Garrison Access . | . . . . . . . . . . . Data Cores Recovered 1 | . . . . 1 . . . . . . Used 1 | . . . . 1 . . . . . . Hacking Detections 10 | . 1 . . 3 5 . 1 . . . Full Trace Events 3 | . . . . 1 1 . 1 . . . Feedback Events . | . . . . . . . . . . . Feedback Blocked . | . . . . . . . . . . . Robot Schematics Acquired . | . . . . . . . . . . . Robots Built . | . . . . . . . . . . . Authchips . | . . . . . . . . . . . Time . | . . . . . . . . . . . Total Robot Build Rating . | . . . . . . . . . . . Part Schematics Acquired . | . . . . . . . . . . . Parts Built . | . . . . . . . . . . . Authchips . | . . . . . . . . . . . Time . | . . . . . . . . . . . Total Part Build Rating . | . . . . . . . . . . . Part Studies Acquired . | . . . . . . . . . . . Parts Repaired 2 | . . . . 1 1 . . . . . Time 48 | . . . . 26 22 . . . . . Parts Recycled . | . . . . . . . . . . . Recycled Matter . | . . . . . . . . . . . Retrieved Matter . | . . . . . . . . . . . Retrieved Components . | . . . . . . . . . . . Parts Scanalyzed . | . . . . . . . . . . . Part Schematics Acquired . | . . . . . . . . . . . Parts Damaged . | . . . . . . . . . . . Bothacking | -11 -10 -10 -10 -8 -7 -7 -7 -6 -6 -6 ------------ Run | Yrd Mat Min Sub Mat Fac Was Fac Fac Was Fac Used RIF Installer . | . . . . . . . . . . . Robots Hacked . | . . . . . . . . . . . Non-combat . | . . . . . . . . . . . Combat . | . . . . . . . . . . . Robot Hacks Applied . | . . . . . . . . . . . Relay Couplers Released 3 | . . . . . . . . 3 . . Machine Destruction 3 | . . . . . . . . 3 . . Fabnet Peak Effective % . | . . . . . . . . . . . Robots Rewired . | . . . . . . . . . . . Allies Hacked . | . . . . . . . . . . . Hacks Repelled . | . . . . . . . . . . . Allies | -11 -10 -10 -10 -8 -7 -7 -7 -6 -6 -6 -------- Run | Yrd Mat Min Sub Mat Fac Was Fac Fac Was Fac Total Allies 22 | . . 3 . . . 19 . . . . Largest Group 18 | . . 3 3 . . 18 18 10 1 1 Highest-Rated Group 444 | . . 40 40 . . 444 442 257 22 22 Highest-Rated Ally 35 | . . 16 16 . . 35 35 35 22 22 Total Orders . | . . . . . . . . . . . Ally Attacks 309 | . . . 12 . . 120 60 117 . . Total Damage 7665 | . . . . . . 4173 823 2669 . . Kills 36 | . . . . . . 6 7 23 . . Allies Corrupted . | . . . . . . . . . . . Allies Melted . | . . . . . . . . . . . Intel | -11 -10 -10 -10 -8 -7 -7 -7 -6 -6 -6 ------- Run | Yrd Mat Min Sub Mat Fac Was Fac Fac Was Fac Active Infowar (turns) 3946 | . 31 114 192 758 1550 55 . 352 756 138 Optics 2538 | . . . . . 1237 55 . 352 756 138 Terrain 2683 | . 31 114 192 758 1550 38 . . . . Machine Analysis 1291 | . . . . . 1238 53 . . . . Robot Analysis Total . | . . . . . . . . . . . Derelict Logs Recovered . | . . . . . . . . . . . Drone Launches . | . . . . . . . . . . . Drone Recoveries . | . . . . . . . . . . . Exploration | -11 -10 -10 -10 -8 -7 -7 -7 -6 -6 -6 ------------- Run | Yrd Mat Min Sub Mat Fac Was Fac Fac Was Fac Turns Passed 6227 | 136 591 543 192 758 1550 253 741 453 756 254 Spaces Moved 3318 | 84 289 263 103 326 813 197 425 236 427 155 Core 151 | 11 . . . . 4 49 . . . 87 Treads 2998 | 73 289 263 103 326 738 52 425 236 427 66 Legs 83 | . . . . . 71 12 . . . . Wheels . | . . . . . . . . . . . Hover 84 | . . . . . . 84 . . . . Flight 2 | . . . . . . . . . . 2 Fastest Speed 35 | 50 160 160 160 160 152 50 170 170 170 35 Average Speed 158 | 148 160 160 160 160 162 111 170 170 170 107 Slowest Speed 650 | 160 160 160 160 160 650 260 180 170 170 500 Overloaded Moves . | . . . . . . . . . . . Propulsion Burnouts . | . . . . . . . . . . . Robots Hopped 1 | . . . . . . . . . . 1 Potential Cave-ins 2 | . . . . . . . . . . 2 Cave-ins Triggered . | . . . . . . . . . . . Exploration Rate (%) 34 | 5 42 65 11 31 15 86 12 13 98 6 Regions Visited 10 Branch Regions 2 Pre-discovered Areas . | . . . . . . . . . . . Known Exits Taken 1 | . 1 . . . . . . . . . Unknown Exits Taken 5 | 1 . 1 1 1 . . 1 . . . Scrap Searched 1 | . . 1 . . . . . . . . Spaces Dug 38 | . . . . . 1 . . . 37 . Terrain Destroyed 584 | . . 74 50 109 137 6 . 85 53 70 Melee . | . . . . . . . . . . . Projectile 26 | . . . . . 13 . . 8 2 3 AOE 558 | . . 74 50 109 124 6 . 77 51 67 Terrain Rammed . | . . . . . . . . . . . Walls Destroyed . | . . . . . . . . . . . Machines Disabled . | . . . . . . . . . . . Actions | -11 -10 -10 -10 -8 -7 -7 -7 -6 -6 -6 --------- Run | Yrd Mat Min Sub Mat Fac Was Fac Fac Was Fac Total 3913 | 92 363 331 112 482 955 224 441 259 450 204 Wait 190 | . 33 28 . 80 36 10 3 . . . Move 3308 | 83 288 262 102 325 813 196 424 236 426 153 Hop 1 | . . . . . . . . . . 1 Pick Up 42 | 3 9 4 . 8 11 2 3 1 1 . Fast Attach 31 | 6 2 . . 2 7 4 3 1 1 5 Attach 22 | . 1 2 . 4 6 4 . 1 . 4 Detach 4 | . 1 . . 1 . 2 . . . . Swap 23 | . . 2 1 6 6 2 3 3 . . Drop 31 | . 1 1 . 6 10 2 5 2 3 1 Fire 223 | . 27 31 9 41 65 2 . 15 4 29 Melee . | . . . . . . . . . . . Ram 11 | . . . . . . . . . . 11 Kick 1 | . . . . . 1 . . . . . Crush 11 | . 1 1 . 9 . . . . . . Escape Stasis . | . . . . . . . . . . . Rewire 15 | . . . . . . . . . 15 . Trap . | . . . . . . . . . . . Miscellaneous . | . . . . . . . . . . . Route ------- -11/Scrapyard -10/Materials -10/Mines (discovered 2 exits: [*Mat] / [*Sub]) -10/Subcaves -8/Materials -7/Factory -7/Waste -7/Factory (discovered 2 exits: [*Fac x2]) -6/Factory -6/Waste -6/Factory History --------- Turn | Location | Event 9 | -11/Scrapyard | Discovered new exit (range 15) 137 | -11/Scrapyard | Entered Materials 311 | -10/Materials | Build established: Mutant 615 | -10/Materials | Discovered new exit (range 7) 628 | -10/Materials | Identified exit to Mines 728 | -10/Materials | Entered Mines 766 | -10/Mines | Excavation squad dispatched 766 | -10/Mines | A large section of the Mines collapsed 910 | -10/Mines | Found a hidden stash of uninstalled traps 966 | -10/Mines | Discovered new exit (range 5) 1201 | -10/Mines | Assisted by bots powering up and referring to "LRC-V3" 1267 | -10/Mines | Discovered new exit (range 3) 1271 | -10/Mines | Entered Subcaves 1271 | -10/Subcaves | Accompanied by 3 allies 1320 | -10/Subcaves | Lost 3 allies 1339 | -10/Subcaves | A swath of the cavern ceiling suddenly collapsed 1443 | -10/Subcaves | Discovered new exit (range 8) 1463 | -10/Subcaves | Entered Materials 1463 | -8/Materials | Evolved 4 slots: Power x1, Propulsion x1, Utility x2 1815 | -8/Materials | Repaired Grenade Launcher 1956 | -8/Materials | Build established: Scavenger-Mutant 2169 | -8/Materials | Discovered new exit (range 12) 2221 | -8/Materials | Entered Factory 2221 | -7/Factory | Evolved 2 slots: Utility x2 2282 | -7/Factory | Build established: Mutant 2505 | -7/Factory | Discovered new exit (range 12) 3023 | -7/Factory | Repaired Med. Treads 3138 | -7/Factory | Cargo convoy interrupted 3495 | -7/Factory | Build established: Scavenger-Mutant 3570 | -7/Factory | Core integrity fell below 50% 3610 | -7/Factory | Lost 3 parts (1p2n) 3768 | -7/Factory | Garrison activated, responded to threat 3771 | -7/Factory | Sucked down chute 3771 | -7/Factory | Entered Waste 3772 | -7/Waste | Met a frightened Derelict 3787 | -7/Waste | Spotted C-40 Crusher 3787 | -7/Waste | Spotted C-40 Crusher 3792 | -7/Waste | Spotted C-40 Crusher 3795 | -7/Waste | Spotted C-40 Crusher 3803 | -7/Waste | Crushed by Compactor (1 part destroyed, 1 dropped) 3806 | -7/Waste | Crushed by Compactor (1 part destroyed, 1 dropped) 3809 | -7/Waste | Crushed by Compactor (1 part destroyed, 2 dropped) 3810 | -7/Waste | Core integrity fell below 20% 3824 | -7/Waste | Crushed by Compactor (1 part destroyed, 2 dropped) 3826 | -7/Waste | Crushed by Compactor (1 part destroyed, 1 dropped) 3835 | -7/Waste | Spotted C-40 Crusher 3840 | -7/Waste | Warlord forces began an assault 3850 | -7/Waste | Allies destroyed C-40 Crusher 3857 | -7/Waste | Lost 6 parts (1p3n2u) 3967 | -7/Waste | Discovered new exit (range 11) 4024 | -7/Waste | Entered Factory 4024 | -7/Factory | Accompanied by 18 allies 4098 | -7/Factory | Build established: Mutant 4123 | -7/Factory | Garrison activated, responded to threat 4540 | -7/Factory | Discovered new exit (range 6) 4737 | -7/Factory | Discovered new exit (range 13) 4765 | -7/Factory | Entered another Factory area 4765 | -6/Factory | Accompanied by 10 allies 4765 | -6/Factory | Evolved 2 slots: Utility x2 5055 | -6/Factory | Spotted B-75 Beast 5074 | -6/Factory | Allies destroyed B-75 Beast 5115 | -6/Factory | First assault squad dispatched 5130 | -6/Factory | Lost 8 allies 5190 | -6/Factory | Garrison activated, responded to threat 5195 | -6/Factory | Discovered new exit (range 15) 5218 | -6/Factory | Sucked down chute 5218 | -6/Factory | Entered Waste 5218 | -6/Waste | The area was eerily silent 5228 | -6/Waste | 1 allies followed down the chute 5427 | -6/Waste | Discovered new exit (range 13) 5974 | -6/Waste | Entered Factory 5974 | -6/Factory | Accompanied by 1 ally 6163 | -6/Factory | Core integrity fell below 50% 6219 | -6/Factory | Core integrity fell below 20% 6228 | -6/Factory | Destroyed by S-27 Virus with Autogun Last Messages --------------- 06192_ Acquired 17 matter. 06192_ R-10 Processor inserts Field Recycling Unit into recycling unit. 06193_ Acquired Terrain Scan Processor. 06195_ Acquired 17 matter. 06198_ K-01 Serf collects debris. 06200_ U-05 Engineer builds a Door. 06212_ Energy Filter destroyed. 06212_ Hacking Suite destroyed. 06215_ W-25 Informer destroyed. 06215_ K-01 Serf destroyed. 06216_ Slammed into S-27 Virus. 06218_ S-27 Virus destroyed. 06219_ Acquired 30 matter. 06219_ R-10 Processor collects Lgt. Nuclear Core. 06220_ Acquired VTOL Module. 06222_ VTOL Module destroyed. 06222_ R-10 Processor collects Autogun. 06224_ K-01 Serf destroyed. Map ----- +----------------------------------------------------+ | ?????????????????????????????????????????????????? | | ?????????????????????????????????????????????????? | | ?????????????????????????????????????????????????? | | ?????????????????????????????????????????????????? | | ?????????????????????????????????????????????????? | | ?????????????????????????????????????????????????? | | ?????????????????????????????????????????????????? | | ?????????????????????????????????????????????????? | | ?????????????????????????????????????????????????? | | ?????????????????????????????????????????????????? | | ?????????????????????????????????????????????????? | | ?????????????????????????????????????????????????? | | ?????????????????????????????????????????????????? | | ?????????????????????????????????????????????????? | | ?????????????????????????????????????????????????? | | ?????????????????????????????????????????????????? | | ?????????????????????????????????????????????????? | | ?????????????????????????????????????????????????? | | ?????????????????????????????????????????????????? | | ?????????????????????????????????????????????????? | | ????????????????????????#+#??????????????????????? | | ????????????????????????# #??????????????????????? | | ????????????????????????#=#??????????????????????? | | ????????????????????????#!#??????????????????????? | | ????????????????????????#%#??????????????????????? | | ????????????????????????#@#??????????????????????? | | ???????????" ########### ###????????????????????? | | ???????????" #????????????????????? | | ???????????" #???????????????????## | | ?????????? +??????????????????? | | ?????????? #????????????????? """ | | ?????????? #????????????????? """ | | ?????????? #???????????????# """ | | ??????????? #???????????????# """ | | ??????????? #???????????????# | | ??????????? #???????????????# """ | | ?????????? #???????????????# """ | | ?????????? #???????????????# """ | | ?????????? ssR #???????????????# """ | | ????????????########### s #???????????????# | | ??????????????????????# #???????????????# | | ??????????????????????# #???################## | | ??????????????????????# #???# """ !! # | | ??????????????????????# % #???# "Y" ! # | | ??????????????????????# #???# # | | ??????????????????????# #???#! # | | ??????????????????????# % #???# """"""""" # | | ??????????????????????# = #???# ! # | | ???????????????????#### ########/#######/###% | | ???????????????????# % | +----------------------------------------------------+ Best States ------------- Heat Dissipation 37 Energy Generation 27 Energy Capacity 370 Matter Stores 300 Matter Capacity 300 Sight Range 22 Terrain Scan Range 16 Terrain Scan Density 85 Armor Coverage 910 Power Shielding 33 Evasion (%) 50 Targeting Accuracy 8 Recoil Reduction 3 Energy Filtering 45 Offensive Hacking 10 Item Schematics ----------------- None Robot Schematics ------------------ None Fabricated ------------ Nothing Repaired ---------- Grenade Launcher | 11% | -8/Materials Med. Treads | 14% | -7/Factory Studied --------- None Alien Tech Used ----------------- None Achievements -------------- Below Ghost 'Em Spot Them First The More The Merrier Challenges ------------ None Game ------ Seed StrikeReactivePod Manual? 0 Play Time 00:56:00 Cumulative 16.2 hours Start 2025.12.09 @ 22:15:56 End 2025.12.09 @ 23:17:18 Sessions 1 Manual Loads 0 Difficulty Rogue Special Mode None Game No. 45 Rogue 45 Adventurer 0 Explorer 0 Win Type - Total 0 Types 0/0/0/0/0/0/0/0/0/0 Lore% 17 Gallery% 21 Achievement% 15 Wizard Run 0 Options --------- Layout 1 ASCII 0 Keyboard 0 Movement Mouse Keybinds 0 Fullscreen 1 Font 32/SmallcapsGlow Map View 50x35 Zoom Use 0% Tactical HUD 1 Map Filters NONE Filters NONE Steam 1 RUN: 495b7264-0ef5-4a15-858e-0c4d94e2cbee